Cogmind - Beta 16 @@@ ROGUE MODE // 2026.01.09 @ 08:31:56 // Winter2019/RPGLIKE Player: Gallgagger Result: Destroyed by G-50 Soldier with Heavy Laser Performance ------------- Evolutions (4) 2000 Regions Visited (13) 2600 Robots Destroyed (496) 2480 Value Destroyed (20616) 20616 Prototype IDs (240) 4800 Alien Tech Used (0) 0 Bonus (15206) 15206 TOTAL SCORE: 47702 Bonus ------- Triggered High Security 1000 High Alert Combat Kills 9845 Follower Combat Kills 28 Destroyed Unchained 1000 Met Data Miner 300 Used Data Conduit 3000 Pursued by Intercept 500 Friendly Fire -467 Cogmind --------- Core Integrity 0/850 Matter 165/350 Energy 700/700 System Corruption 2% Temperature Cool (9) Movement Flying (20) Location -6/Factory Parts ------- > --- POWER (3) -------- Enhanced Nuclear Core Enhanced Nuclear Core Enhanced Nuclear Core > --- PROPULSION (6) --- Cooled VTOL Module Cooled VTOL Module Cooled VTOL Module (fused) Nuclear Pulse Thruster Biomechanical Wings Improved Diametric Drive > --- UTILITY (8) ------ Experimental Heat Sink Gravity Neutralizer Experimental Sensor Array Advanced Signal Interpreter Improved Salvage Targeting Computer Weapon Cycler Weapon Cycler Graphene Brace (fused) > --- WEAPON (5) ------- Immobilizer PD Laser Advanced KE Penetrator > --- INVENTORY (4) ---- Weapon Mount Trap Reconfigurator Tearclaws Peak State ------------ > --- POWER ------------ Enhanced Nuclear Core Enhanced Nuclear Core Enhanced Nuclear Core > --- PROPULSION ------- Cooled VTOL Module Cooled VTOL Module Cooled VTOL Module Nuclear Pulse Thruster Biomechanical Wings Improved Diametric Drive > --- UTILITY ---------- Experimental Heat Sink Gravity Neutralizer Experimental Sensor Array Advanced Signal Interpreter Improved Salvage Targeting Computer Weapon Cycler Weapon Cycler Graphene Brace > --- WEAPON ----------- Immobilizer PD Laser Advanced KE Penetrator > --- INVENTORY -------- Weapon Mount Trap Reconfigurator Tearclaws [Rating: 136] Favorites ----------- Power Improved Deuterium Engine Engine Improved Deuterium Engine Power Core Micro Nuclear Core Propulsion Cooled VTOL Module Wheel Wheel Hover Unit Cooled Aerolev Unit Flight Unit Cooled VTOL Module Utility Weapon Cycler Device Weapon Cycler Processor Improved Signal Interpreter Hackware Advanced Hacking Suite Protection Light Armor Plating Weapon Enhanced Autogun Energy Gun PD Laser Energy Cannon Heavy Neutron Cannon Ballistic Gun Enhanced Autogun Launcher Tesla Bomb Launcher Special Weapon Remote Datajack Slashing Weapon Tearclaws Build | -11 -10 -10 -10 -9 -8 -7 -7 -7 -7 -7 -7 -6 -6 ------- Run | Yrd Mat Min Exi Min Mat Fac Was Fac Low Low Dat Pro Fac Slots Evolved 18 | 3 3 . . 1 3 4 . 3 . . . . 1 Power 2 | . . . . . . 1 . 1 . . . . . Propulsion 5 | 1 1 . . . . 2 . . . . . . 1 Utility 7 | 1 1 . . 1 3 1 . . . . . . . Weapon 4 | 1 1 . . . . . . 2 . . . . . Parts Attached 95 | 7 5 2 1 . 22 26 . 13 1 3 2 . 13 Power 9 | 1 1 . . . 1 2 . 1 . . . . 3 Engine 3 | 1 1 . . . 1 . . . . . . . . Core 6 | . . . . . . 2 . 1 . . . . 3 Reactor . | . . . . . . . . . . . . . . Propulsion 22 | 2 3 . . . 7 7 . . . 1 . . 2 Treads . | . . . . . . . . . . . . . . Leg . | . . . . . . . . . . . . . . Wheel 2 | 2 . . . . . . . . . . . . . Hover 1 | . . . . . . 1 . . . . . . . Flight 19 | . 3 . . . 7 6 . . . 1 . . 2 Utility 32 | 2 1 1 1 . 9 7 . 6 . 2 1 . 2 Device 18 | 2 1 1 1 . 2 5 . 3 . 1 1 . 1 Storage . | . . . . . . . . . . . . . . Processor 6 | . . . . . 2 1 . 2 . . . . 1 Hackware 1 | . . . . . . . . 1 . . . . . Protection 7 | . . . . . 5 1 . . . 1 . . . Artifact . | . . . . . . . . . . . . . . Weapon 32 | 2 . 1 . . 5 10 . 6 1 . 1 . 6 Energy Gun 5 | . . . . . . 2 . 1 . . . . 2 Energy Cannon 3 | . . . . . . 1 . 2 . . . . . Ballistic Gun 19 | 2 . 1 . . 5 4 . 3 1 . . . 3 Ballistic Cannon . | . . . . . . . . . . . . . . Launcher 1 | . . . . . . 1 . . . . . . . Special Weapon 1 | . . . . . . . . . . . . . 1 Impact Weapon . | . . . . . . . . . . . . . . Slashing Weapon 3 | . . . . . . 2 . . . . 1 . . Piercing Weapon . | . . . . . . . . . . . . . . Special Melee Weapon . | . . . . . . . . . . . . . . Unidentified Prototypes 22 | . . 1 . . 1 13 . 4 . 1 . . 2 Parts Lost 7 | . . . . 1 6 . . . . . . . . Power . | . . . . . . . . . . . . . . Propulsion 4 | . . . . 1 3 . . . . . . . . Utility 2 | . . . . . 2 . . . . . . . . Weapon 1 | . . . . . 1 . . . . . . . . Highest Loss Streak 1 | . . . . 1 1 . . . . . . . . To Critical Strikes . | . . . . . . . . . . . . . . Average Backups 2 | . . . 1 1 1 2 1 2 3 3 3 3 3 Power . | . . . . . . . . . . . . . . Propulsion . | . . . . . . . 1 . . . . . . Utility 1 | . . . 1 1 1 1 . 1 1 1 1 2 1 Weapon . | . . . . . . . . 1 2 1 1 . . Tool/Special . | . . . . . . . . . . . . . . Unused Backups 6 | . 2 . . . . . . 1 1 . . . 2 Power . | . . . . . . . . . . . . . . Propulsion 1 | . 1 . . . . . . . . . . . . Utility 3 | . 1 . . . . . . . . . . . 2 Weapon 2 | . . . . . . . . 1 1 . . . . Tool/Special . | . . . . . . . . . . . . . . Average Slot Usage (%) 95 | . 96 98 100 97 95 100 100 98 90 90 89 90 89 Engine 6 | . 12 10 10 9 7 5 5 4 4 4 4 4 3 Core 4 | . . . . . . 4 5 5 9 9 9 9 9 Flight 24 | . 21 30 30 25 22 27 27 25 23 23 23 23 24 Device 26 | . 25 30 30 33 23 25 27 25 28 28 28 28 27 Processor 8 | . . . . . 2 14 16 13 9 9 9 9 9 Protection 2 | . . . . . 15 2 . . . . . . . Energy Gun 1 | . . . . . . . . . 4 4 4 4 6 Ballistic Gun 16 | . 25 28 30 28 22 16 16 17 9 9 8 9 6 Peak Build Rating 136 | 9 11 21 29 30 59 92 91 111 114 117 118 114 136 Average Rating 76 | 5 9 19 27 29 34 78 90 92 109 114 113 114 121 On Entrance 64 | . 9 11 21 29 29 59 90 91 106 114 114 114 114 Avg Prop Armor Cover (%) 1 | . 5 . . . . 4 . . . . . . 1 Naked Turns . | . . . . . . . . . . . . . . Heaviest Build 52 | 9 10 13 13 14 32 36 33 45 48 48 48 48 52 Greatest Support 67 | 25 25 17 17 22 33 60 54 57 51 51 51 51 67 Greatest Overweight (x) 1 | . . . . . . 1 . . . . . . 1 Average Overweight (x) . | . . . . . . . . . . . . . . Largest Inventory Capacity 4 | 2 3 3 3 3 3 3 3 4 4 4 4 4 4 Average Capacity 3 | 2 2 3 3 3 3 3 3 3 4 4 4 4 4 Most Carried 4 | . 2 1 2 2 3 3 3 4 4 4 4 4 4 Average Carried 2 | . . . 1 1 2 2 2 3 3 4 3 4 3 Final Capacity 4 | 2 3 3 3 3 3 3 3 4 4 4 4 4 4 Final Carried 4 | . . 1 2 1 2 2 3 4 4 4 4 4 4 Class Distribution -------------------- 52% | Scavenger-Sprinter 17% | Sprinter 9% | Scavenger-Skirmisher 5% | Scavenger-Mutant 3% | Mutant 3% | Commander-Sprinter 3% | Machinist-Sprinter Dominant Class ---------------- Scavenger-Mutant | -10/Materials Scavenger-Skirmisher | -10/Mines Scavenger-Skirmisher | -10/Exiles Scavenger-Skirmisher | -9/Mines Scavenger-Sprinter | -8/Materials Sprinter | -7/Factory Sprinter | -7/Waste Scavenger-Sprinter | -7/Factory Scavenger-Sprinter | -7/Lower Caves Scavenger-Sprinter | -7/Lower Caves Scavenger-Sprinter | -7/Data Miner Scavenger-Sprinter | -6/Proximity Caves Scavenger-Sprinter | -6/Factory Resources | -11 -10 -10 -10 -9 -8 -7 -7 -7 -7 -7 -7 -6 -6 ----------- Run | Yrd Mat Min Exi Min Mat Fac Was Fac Low Low Dat Pro Fac Matter Collected 13376 | 342 612 222 145 309 1874 2202 . 5779 244 339 170 237 901 Remotely 2722 | 52 612 52 . 209 1797 . . . . . . . . Salvage Created 22492 | 115 1233 315 239 240 2372 3321 . 8601 531 521 400 543 4061 Parts 1423 | 9 80 17 11 9 133 212 . 553 44 39 26 60 230 Haulers Intercepted 25 | . 2 . . . 5 7 . 7 . 1 . . 3 Recyclers Shooed 2 | . . . . . . . . . . . . . 2 Parts Field Recycled . | . . . . . . . . . . . . . . Retrieved Matter . | . . . . . . . . . . . . . . Parts Self-Destructed 146 | . . . . . . . . . 43 42 . 61 . Prevented 3 | . . . . . . . . . . 2 . 1 . Parts Restored . | . . . . . . . . . . . . . . Kills | -11 -10 -10 -10 -9 -8 -7 -7 -7 -7 -7 -7 -6 -6 ------- Run | Yrd Mat Min Exi Min Mat Fac Was Fac Low Low Dat Pro Fac Combat Hostiles Destroyed 447 | . 31 9 . 14 55 63 . 158 16 15 4 25 57 Guns 447 | . 31 9 . 14 55 63 . 158 16 15 4 25 57 Classes Destroyed 23 | 2 4 1 . 1 6 4 . 2 2 . . 1 . Worker 18 | . 2 . . . 2 5 . 6 . . . . 3 Builder 9 | . . . . . 1 1 . 3 . . . . 4 Tunneler 4 | 2 1 . . . 1 . . . . . . . . Hauler 25 | . 2 . . . 5 7 . 7 . 1 . . 3 Recycler 5 | 1 1 . . . . 2 . . . . . . 1 Operator 4 | . . . . . . . . 1 . . . . 3 Drone 2 | . . . . . . . . . . . . 2 . Watcher 9 | . . . . . 2 . . 3 . . . . 4 Swarmer 66 | . 9 7 . . 6 7 . 11 5 2 . 12 7 Cutter 12 | . . . . . 3 5 . 4 . . . . . Grunt 188 | . 22 . . 3 29 25 . 76 3 11 . 3 16 Brawler 17 | . . . . . 4 1 . 9 . . . 2 1 Duelist 15 | . . . . . 2 . . 10 1 . . 1 1 Protector 13 | . . . . . . 2 . 10 . . . . 1 Sentry 47 | . . 2 . . 10 8 . 12 2 1 . 2 10 Demolisher 1 | . . . . . . . . 1 . . . . . Specialist 9 | . . . . . . 3 . 3 . . . . 3 Hunter 20 | . . . . . . 5 . 7 2 . . 2 4 Programmer 25 | . . . . . . 7 . 11 1 . . . 6 Heavy 5 | . . . . . 1 . . 4 . . . . . Behemoth 4 | . . . . . . . . . 1 1 . 1 1 Enhanced Grunt 4 | . . . . . . . . . . . 4 . . Tracker 3 | . . . . . . . . . . . . . 3 Combat Programmer 3 | . . . . . . . . . . . . . 3 Thief 1 | . . . . . . . . . 1 . . . . Assembled 11 | . . . . 11 . . . . . . . . . Thug 2 | . . 1 . 1 . . . . . . . . . Best Kill Streak 20 | 3 7 6 . 4 11 12 . 20 6 6 2 14 11 Combat Bots Only 20 | . 6 6 . 4 6 9 . 20 6 6 2 14 9 Max Kills in Single Turn 3 | 2 2 1 . 2 2 2 . 2 2 2 1 2 3 Gunslinging 1 | . 1 . . 1 . 1 . 1 . . . 1 . Exploded . | . . . . . . . . . . . . . . Melee . | . . . . . . . . . . . . . . Uniques/NPCs Destroyed 1 | . . . . . . . . . . . . . 1 6S-H0T (-6/Factory) Combat | -11 -10 -10 -10 -9 -8 -7 -7 -7 -7 -7 -7 -6 -6 -------- Run | Yrd Mat Min Exi Min Mat Fac Was Fac Low Low Dat Pro Fac Hostile Shots Fired 1723 | . 128 41 . 37 224 289 . 493 40 39 6 43 383 Missed 738 | . 45 19 . 14 79 142 . 223 16 15 3 19 163 Hits 985 | . 83 22 . 23 145 147 . 270 24 24 3 24 220 Melee 27 | . . . . 6 15 4 . 2 . . . . . Projectile 958 | . 83 22 . 17 130 143 . 268 24 24 3 24 220 AOE 5 | . 1 . . . 1 1 . 2 . . . . . Critical Strikes 35 | . . 1 . 1 11 3 . 5 . 1 . . 13 Actively Blocked 17 | . . . . . . . . 3 . 1 . . 13 Part Disruptions 1 | . . . . . . . . . . 1 . . . Damage Taken 14746 | . 915 233 . 399 2678 1939 . 4175 294 550 136 397 3030 Core 11541 | . 739 186 . 333 1872 1491 . 3391 241 443 107 327 2411 Absorbed by Shields . | . . . . . . . . . . . . . . Redirected to Core 9405 | . 573 156 . 242 1409 1258 . 2709 181 378 107 248 2144 Core Remaining (%) 84 | 100 . . . 64 93 . . . . . . 81 . Volleys Fired 1208 | 12 91 24 16 29 183 160 . 409 19 30 21 27 187 Largest 4 | 2 2 3 3 3 3 3 . 4 2 2 2 2 2 Hottest 115 | 40 40 63 63 63 66 84 . 100 70 70 70 70 115 Shots Fired 3402 | 24 181 64 48 88 518 423 . 1419 71 85 36 78 367 Gun 3401 | 24 181 64 48 88 518 423 . 1419 71 85 36 78 366 Cannon . | . . . . . . . . . . . . . . Launcher . | . . . . . . . . . . . . . . Special 1 | . . . . . . . . . . . . . 1 Kinetic 3086 | 24 181 64 48 88 518 423 . 1339 35 61 29 54 222 Thermal 303 | . . . . . . . . 80 36 24 7 24 132 Explosive . | . . . . . . . . . . . . . . Electromagnetic 12 | . . . . . . . . . . . . . 12 Robot Hit Streak 35 | 11 16 24 16 21 30 35 . 31 16 11 9 9 21 Robot Miss Streak 22 | 2 4 3 1 2 3 4 . 7 22 3 2 6 5 Penetration Max 1 | . . . . . . 1 . . 1 1 1 1 1 Secondary Targets 85 | . 7 2 . 3 11 11 . 47 . . 1 3 . Max Gunslinging Chain 2 | . 1 1 . 2 1 1 . 2 . . 1 1 . Autonomous 303 | . . . . . . . . 81 36 24 7 24 131 Shots Hit Robots 2408 | 16 132 40 30 63 403 263 . 979 43 69 22 60 288 Core Hits 1092 | 4 57 14 16 26 141 150 . 430 26 28 12 36 152 Critical Kills 28 | . . . . . 2 4 . 2 2 3 3 3 9 Critical Parts Destroyed 44 | . 3 . . . 5 3 . 5 1 6 1 2 18 Critical Strikes 85 | . 3 . . . 7 7 . 7 3 9 5 5 39 Destroy 85 | . 3 . . . 7 7 . 7 3 9 5 5 39 Melee Attacks 1 | . . . . . . . . . . . 1 . . Impact . | . . . . . . . . . . . . . . Slashing 1 | . . . . . . . . . . . 1 . . Piercing . | . . . . . . . . . . . . . . Sneak Attacks 1 | . . . . . . . . . . . 1 . . Combat Hostiles . | . . . . . . . . . . . . . . Follow-up Attacks . | . . . . . . . . . . . . . . Damage Inflicted 60575 | 204 1713 549 425 873 5659 7163 . 22718 1620 2857 752 2553 13489 Guns 60504 | 204 1713 549 425 873 5659 7163 . 22718 1620 2857 719 2553 13451 Cannons . | . . . . . . . . . . . . . . Explosions 38 | . . . . . . . . . . . . . 38 Melee 33 | . . . . . . . . . . . 33 . . Ramming . | . . . . . . . . . . . . . . Kinetic 44733 | 204 1713 549 425 873 5659 7163 . 18828 626 1435 438 1250 5570 Thermal 15772 | . . . . . . . . 3890 994 1422 281 1303 7882 Explosive . | . . . . . . . . . . . . . . Electromagnetic 37 | . . . . . . . . . . . . . 37 Impact . | . . . . . . . . . . . . . . Slashing 33 | . . . . . . . . . . . 33 . . Piercing . | . . . . . . . . . . . . . . Highest Corruption 13 | . 3 3 3 3 . . 9 13 13 13 13 13 2 Average Corruption 8 | . 2 3 3 3 . . 9 11 13 13 13 13 1 Corruption Purged . | . . . . . . . . . . . . . . Corruption Blocked . | . . . . . . . . . . . . . . Effects 252 | . 9 7 5 9 . . 1 127 35 16 6 24 13 Message Errors 57 | . 2 1 . 2 . . . 25 10 1 2 9 5 Matter Fused 46 | . 1 2 1 2 . . . 21 5 4 . 7 3 Heat Flow Errors 31 | . 3 . . . . . 1 17 3 1 1 3 2 Energy Discharges 16 | . . 2 2 1 . . . 9 . 1 . . 1 Parts Rejected 4 | . 1 . . . . . . 3 . . . . . Parts Fused 2 | . . . . . . . . 1 1 . . . . Data Loss (minor) 27 | . 1 1 1 2 . . . 7 5 5 2 2 1 Data Loss (major) 8 | . . . . 1 . . . 2 4 . . 1 . Misfires 6 | . . . . 1 . . . 3 . 1 . . 1 Alerts 5 | . . . 1 . . . . 2 . 2 . . . Misdirections 13 | . . . . . . . . 6 4 1 . 2 . Weapon Failures 37 | . 1 1 . . . . . 31 3 . 1 . . Overload Shots . | . . . . . . . . . . . . . . Overflow Damage 23 | . . . . . . . . . . . 23 . . Projectiles . | . . . . . . . . . . . . . . Explosions . | . . . . . . . . . . . . . . Melee 23 | . . . . . . . . . . . 23 . . Knockbacks . | . . . . . . . . . . . . . . Impact . | . . . . . . . . . . . . . . Kinetic . | . . . . . . . . . . . . . . Secondary . | . . . . . . . . . . . . . . Self-Inflicted Damage 83 | . . . . . . . . 83 . . . . . Shots 1 | . . . . . . . . 1 . . . . . Rammed . | . . . . . . . . . . . . . . Targets Rammed . | . . . . . . . . . . . . . . Kicked . | . . . . . . . . . . . . . . Crushed . | . . . . . . . . . . . . . . Highest Temperature 407 | . 248 5 . 14 19 144 65 407 195 324 93 116 285 Average Temperature 63 | . 114 5 . 6 3 24 65 82 40 80 36 41 60 Received Heat Transfer 3657 | . 396 63 . 117 909 540 . 1221 39 126 . 51 195 Effects 7 | . . . . . . . . 7 . . . . . Shutdowns 3 | . . . . . . . . 3 . . . . . Interference 2 | . . . . . . . . 2 . . . . . Short Circuit 1 | . . . . . . . . 1 . . . . . Damage (minor) 1 | . . . . . . . . 1 . . . . . Siege Activations . | . . . . . . . . . . . . . . Martial Activations . | . . . . . . . . . . . . . . Shielding Activations . | . . . . . . . . . . . . . . Robots Disrupted . | . . . . . . . . . . . . . . Combat Hostiles . | . . . . . . . . . . . . . . Robots Corrupted . | . . . . . . . . . . . . . . Combat Hostiles . | . . . . . . . . . . . . . . Parts Fried . | . . . . . . . . . . . . . . Impact Corruptions . | . . . . . . . . . . . . . . Robots Melted . | . . . . . . . . . . . . . . Combat Hostiles . | . . . . . . . . . . . . . . Parts Melted 15 | . . . . . . 1 . 3 1 . 1 1 8 Heat Transferred 12024 | . . . . . . . . 3113 875 1275 375 1100 5286 Parts Sabotaged . | . . . . . . . . . . . . . . Parts Stolen . | . . . . . . . . . . . . . . Parts Stripped . | . . . . . . . . . . . . . . Power Chain Reactions . | . . . . . . . . . . . . . . Alert | -11 -10 -10 -10 -9 -8 -7 -7 -7 -7 -7 -7 -6 -6 ------- Run | Yrd Mat Min Exi Min Mat Fac Was Fac Low Low Dat Pro Fac Maximum Alert Level 5 | . 2 2 . . 4 5 4 5 . . . . 5 Low Security (%) 16 | 100 35 . . 100 12 . . . . . . . 23 Level 1 10 | . 20 60 . . 23 . . . . . . . 14 Level 2 15 | . 43 39 . . 14 18 . 6 . . . . 12 Level 3 24 | . . . . . 40 27 37 32 . . . . 21 Level 4 14 | . . . . . 9 29 62 10 . . . . 24 Level 5 9 | . . . . . . 21 . 19 . . . . 2 High Security 8 | . . . . . . 2 . 30 . . . . . Max Security . | . . . . . . . . . . . . . . Sterilizations 2 | . . . . . 1 . . 1 . . . . . Peak Influence 4312 | 10 684 459 . 123 1135 1920 1100 4312 . . . . 1858 Initial 1100 | . . 264 . . . 505 1100 763 . . . . 320 Average 1011 | . 315 359 . 50 605 1175 1095 1924 . . . . 716 Influence Increases 13111 | 15 1042 285 15 193 1672 1971 . 4344 320 335 . 534 2385 Destroy 0b10 Robot/C 8440 | . 620 180 . 140 1100 1220 . 3000 300 320 . 460 1100 Destroy 0b10 Robot/NC 460 | 15 30 . 15 . 55 85 . 150 . 5 . 10 95 Destroy Leader 1744 | . 144 30 . 20 284 312 . 550 20 10 . 50 324 Allied During Kill 127 | . . . . 33 . . . 80 . . . 14 . Trap Triggered on 0b10 70 | . . . . . . 30 . 40 . . . . . Successful Hack 244 | . 25 . . . . 84 . 84 . . . . 51 Select Force Hacks 160 | . 160 . . . . . . . . . . . . Disable Machine 510 | . . . . . . 120 . 150 . . . . 240 Anti-Garrison Action 150 | . . . . . . . . . . . . . 150 Destroy Structure 246 | . 3 . . . 8 15 . 65 . . . . 155 Advance Influence 150 | . . . . . . . . . . . . . 150 Partial Spotted 285 | . 15 . . . 75 30 . 60 . . . . 105 Lose Combat Pursuer 525 | . 45 75 . . 150 75 . 165 . . . . 15 Influence Decreases 11681 | 15 364 574 404 193 561 1162 1258 1122 1890 748 2329 262 799 Entered New Map 7533 | . . 414 389 . . 606 1248 327 1596 522 2329 . 102 Time Decay 3673 | 15 364 160 15 143 506 556 10 565 294 206 . 262 577 Lost Part 65 | . . . . 10 55 . . . . . . . . Lost Ally 260 | . . . . 40 . . . 80 . 20 . . 120 Purge Threat 150 | . . . . . . . . 150 . . . . . Squads Dispatched 104 | . 12 . . . 12 22 . 41 . 1 . . 16 Investigation 28 | . 9 . . . 1 4 . 10 . 1 . . 3 Extermination 12 | . . . . . . 5 . 3 . . . . 4 Reinforcement 26 | . 3 . . . 5 7 . 9 . . . . 2 Assault 25 | . . . . . . 6 . 16 . . . . 3 Garrison 10 | . . . . . 6 . . 3 . . . . 1 Intercept 3 | . . . . . . . . . . . . . 3 Searches Triggered . | . . . . . . . . . . . . . . Unchained Authorized 2 | . . . . . . . . . . . . . 2 Construction Impeded 4 | . . . . . . . . 3 . . . . 1 Haulers Reinforced 3 | . . . . . . 2 . . . . . . 1 Active Scanning Responses . | . . . . . . . . . . . . . . Cargo Convoy Interrupts 3 | . . . . . . 1 . 1 . . . . 1 Stealth | -11 -10 -10 -10 -9 -8 -7 -7 -7 -7 -7 -7 -6 -6 --------- Run | Yrd Mat Min Exi Min Mat Fac Was Fac Low Low Dat Pro Fac Distress Signals 18 | . 5 . . 2 4 3 . 1 . . . . 3 Communications Jammed . | . . . . . . . . . . . . . . Distress Signals . | . . . . . . . . . . . . . . Times Spotted 569 | . 45 13 . 21 78 90 3 196 15 14 4 23 67 Peak Tracking Total 13 | . 5 3 . 5 8 13 3 12 5 5 2 7 7 Tactical Retreats 23 | . 3 3 . 1 6 3 . 6 . . . . 1 Traps | -11 -10 -10 -10 -9 -8 -7 -7 -7 -7 -7 -7 -6 -6 ------- Run | Yrd Mat Min Exi Min Mat Fac Was Fac Low Low Dat Pro Fac Traps Triggered 15 | . 4 . . . 1 6 . 3 . 1 . . . Indirectly . | . . . . . . . . . . . . . . Trap Hack Attempts . | . . . . . . . . . . . . . . Triggered . | . . . . . . . . . . . . . . Disarmed . | . . . . . . . . . . . . . . Reprogrammed . | . . . . . . . . . . . . . . Reused 7 | . . . . . . 3 . 4 . . . . . Traps Reconfigurated 72 | . . . . . 22 38 . 12 . . . . . Traps Extracted . | . . . . . . . . . . . . . . Installed . | . . . . . . . . . . . . . . Triggered 7 | . . . . . . 3 . 4 . . . . . Machines | -11 -10 -10 -10 -9 -8 -7 -7 -7 -7 -7 -7 -6 -6 ---------- Run | Yrd Mat Min Exi Min Mat Fac Was Fac Low Low Dat Pro Fac Machines Disabled 44 | . . . . . . 8 . 16 1 1 . 1 17 Max in Single Turn 5 | . . . . . . 1 . 4 1 1 . 1 5 Garrison Access 4 | . . . . . . 1 . 1 . . . . 2 Machines Repaired . | . . . . . . . . . . . . . . Machines Dismantled . | . . . . . . . . . . . . . . Machines Sabotaged 2 | . 2 . . . . . . . . . . . . Overloaded Fab Kills . | . . . . . . . . . . . . . . Hacking | -11 -10 -10 -10 -9 -8 -7 -7 -7 -7 -7 -7 -6 -6 --------- Run | Yrd Mat Min Exi Min Mat Fac Was Fac Low Low Dat Pro Fac Machines Accessed 56 | . 8 . 2 . . 12 . 14 1 1 4 . 14 Terminals 27 | . 5 . . . . 6 . 7 . 1 . . 8 Fabricators 13 | . . . . . . 5 . 5 . . . . 3 Repair Stations 1 | . 1 . . . . . . . . . . . . Recycling Units 2 | . 2 . . . . . . . . . . . . Scanalyzers . | . . . . . . . . . . . . . . Garrison Access 6 | . . . . . . 1 . 2 . . . . 3 Total Hacks 151 | . 21 . 4 . . 31 . 35 1 3 27 . 29 Successful 87 | . 11 . 4 . . 14 . 16 1 3 27 . 11 Failed 64 | . 10 . . . . 17 . 19 . . . . 18 Catastrophic 12 | . . . . . . 3 . 4 . . . . 5 Database Lockouts . | . . . . . . . . . . . . . . Manual 53 | . 16 . 2 . . 15 . 7 . . . . 13 Terminals 71 | . 17 . . . . 16 . 17 . 3 . . 18 Fabricators 33 | . . . . . . 14 . 14 . . . . 5 Repair Stations 1 | . 1 . . . . . . . . . . . . Recycling Units 3 | . 3 . . . . . . . . . . . . Scanalyzers . | . . . . . . . . . . . . . . Garrison Access 11 | . . . . . . 1 . 4 . . . . 6 Terminal Hacks 43 | . 2 . 4 . . 1 . 3 1 3 27 . 2 Record 17 | . . . 3 . . . . . . 3 11 . . Part Schematic 11 | . . . . . . 1 . . . . 9 . 1 Robot Schematic 4 | . . . . . . . . . . . 4 . . Robot Analysis 2 | . 2 . . . . . . . . . . . . Prototype ID Bank 3 | . . . . . . . . . . . 3 . . Open Door 1 | . . . . . . . . . 1 . . . . Branch Access Points 1 | . . . . . . . . 1 . . . . . Fabricator Index 2 | . . . . . . . . 1 . . . . 1 Unreport Threat 1 | . . . . . . . . 1 . . . . . Proto ID Catalog 1 | . . . 1 . . . . . . . . . . Fabricator Hacks 17 | . . . . . . 6 . 8 . . . . 3 Network Status 1 | . . . . . . 1 . . . . . . . Load Schematic 7 | . . . . . . 3 . 3 . . . . 1 Build 9 | . . . . . . 2 . 5 . . . . 2 Repair Station Hacks . | . . . . . . . . . . . . . . Recycling Unit Hacks . | . . . . . . . . . . . . . . Scanalyzer . | . . . . . . . . . . . . . . Garrison Access Hacks 3 | . . . . . . 1 . 1 . . . . 1 Seal Access 3 | . . . . . . 1 . 1 . . . . 1 Unauthorized Hacks 24 | . 9 . . . . 6 . 4 . . . . 5 Terminals 19 | . 6 . . . . 5 . 4 . . . . 4 Assimilate 2 | . . . . . . 1 . 1 . . . . . Botnet 14 | . 3 . . . . 4 . 3 . . . . 4 Sabotage 3 | . 3 . . . . . . . . . . . . Fabricators 2 | . . . . . . 1 . . . . . . 1 Haulers 2 | . . . . . . 1 . . . . . . 1 Repair Stations 1 | . 1 . . . . . . . . . . . . Patch 1 | . 1 . . . . . . . . . . . . Recycling Units 2 | . 2 . . . . . . . . . . . . Tunnel 2 | . 2 . . . . . . . . . . . . Scanalyzers . | . . . . . . . . . . . . . . Garrison Access . | . . . . . . . . . . . . . . Data Cores Recovered 3 | . . . . . . . . . . . . . 3 Used 1 | . . . . . . . . . . . . . 1 Hacking Detections 40 | . 5 . . . . 11 . 12 . 1 . . 11 Full Trace Events 18 | . 2 . . . . 4 . 8 . 1 . . 3 Feedback Events 1 | . . . . . . . . 1 . . . . . Corruption 1 | . . . . . . . . 1 . . . . . Feedback Blocked . | . . . . . . . . . . . . . . Robot Schematics Acquired 4 | . . . . . . . . . . . 4 . . Robots Built 9 | . . . . . . . . 5 . . . . 4 Authchips . | . . . . . . . . . . . . . . Time 172 | . . . . . . . . 105 . . . . 67 Total Robot Build Rating 33 | . . . . . . . . 17 . . . . 16 Part Schematics Acquired 11 | . . . . . . 1 . . . . 9 . 1 Parts Built 7 | . . . . . . 2 . 3 . . . . 2 Authchips . | . . . . . . . . . . . . . . Time 395 | . . . . . . 116 . 232 . . . . 47 Total Part Build Rating 25 | . . . . . . 6 . 9 . . . . 10 Part Studies Acquired . | . . . . . . . . . . . . . . Parts Repaired . | . . . . . . . . . . . . . . Time . | . . . . . . . . . . . . . . Parts Recycled . | . . . . . . . . . . . . . . Recycled Matter . | . . . . . . . . . . . . . . Retrieved Matter . | . . . . . . . . . . . . . . Retrieved Components . | . . . . . . . . . . . . . . Parts Scanalyzed . | . . . . . . . . . . . . . . Part Schematics Acquired . | . . . . . . . . . . . . . . Parts Damaged . | . . . . . . . . . . . . . . Bothacking | -11 -10 -10 -10 -9 -8 -7 -7 -7 -7 -7 -7 -6 -6 ------------ Run | Yrd Mat Min Exi Min Mat Fac Was Fac Low Low Dat Pro Fac Used RIF Installer . | . . . . . . . . . . . . . . Robots Hacked 1 | . . . . . . . . . . . . . 1 Non-combat 1 | . . . . . . . . . . . . . 1 Combat . | . . . . . . . . . . . . . . Robot Hacks Applied 1 | . . . . . . . . . . . . . 1 find_chute 1 | . . . . . . . . . . . . . 1 Relay Couplers Released 1 | . . . . . . . . . . . . . 1 Machine Destruction 1 | . . . . . . . . . . . . . 1 Fabnet Peak Effective % . | . . . . . . . . . . . . . . Robots Rewired 6 | . . . 3 . . . . . 1 . . 2 . Allies Hacked . | . . . . . . . . . . . . . . Hacks Repelled . | . . . . . . . . . . . . . . Allies | -11 -10 -10 -10 -9 -8 -7 -7 -7 -7 -7 -7 -6 -6 -------- Run | Yrd Mat Min Exi Min Mat Fac Was Fac Low Low Dat Pro Fac Total Allies 21 | . . 2 3 1 . 1 1 6 1 . . 2 4 Largest Group 6 | . . 2 3 4 . 1 1 6 1 1 . 2 4 Highest-Rated Group 122 | . . 42 37 68 . 26 31 122 20 16 . 61 61 Highest-Rated Ally 32 | . . 31 21 31 . 26 31 32 20 16 . 32 32 Total Orders 14 | . . . . . . . . 6 8 . . . . STAY 7 | . . . . . . . . 4 3 . . . . ROAM 4 | . . . . . . . . . 4 . . . . FOLLOW 3 | . . . . . . . . 2 1 . . . . Ally Attacks 67 | . . . . 26 . . . 22 3 1 . . 15 Total Damage 1102 | . . . . 288 . . . 527 . 21 . . 266 Kills 9 | . . . . 6 . . . 2 . 1 . . . Allies Corrupted . | . . . . . . . . . . . . . . Allies Melted 1 | . . . . . . . . 1 . . . . . Intel | -11 -10 -10 -10 -9 -8 -7 -7 -7 -7 -7 -7 -6 -6 ------- Run | Yrd Mat Min Exi Min Mat Fac Was Fac Low Low Dat Pro Fac Active Infowar (turns) 11213 | 13 960 326 340 427 1478 1673 32 2432 652 433 109 570 1768 Sensors 10187 | . . 273 340 427 1478 1673 32 2432 652 433 109 570 1768 Terrain 2090 | 13 960 326 340 427 24 . . . . . . . . Seismic 378 | . 9 326 43 . . . . . . . . . . Robot Analysis Total 154 | . 2 . . . . . . . . . 152 . . Derelict Logs Recovered 9 | . . 2 . 2 . . . . 2 1 . 2 . Drone Launches . | . . . . . . . . . . . . . . Drone Recoveries . | . . . . . . . . . . . . . . Exploration | -11 -10 -10 -10 -9 -8 -7 -7 -7 -7 -7 -7 -6 -6 ------------- Run | Yrd Mat Min Exi Min Mat Fac Was Fac Low Low Dat Pro Fac Turns Passed 11307 | 97 960 326 340 427 1478 1673 32 2442 652 433 109 570 1768 Spaces Moved 19686 | 64 1073 552 670 670 1883 3429 105 4318 1323 819 156 827 3797 Core 4 | 1 . . . . . 3 . . . . . . . Treads . | . . . . . . . . . . . . . . Legs . | . . . . . . . . . . . . . . Wheels 258 | 63 195 . . . . . . . . . . . . Hover . | . . . . . . . . . . . . . . Flight 19424 | . 878 552 670 670 1883 3426 105 4318 1323 819 156 827 3797 Fastest Speed 5 | 50 34 34 34 34 29 5 25 14 24 24 24 24 11 Average Speed 26 | 79 42 34 34 35 30 23 25 24 24 24 24 24 22 Slowest Speed 100 | 80 80 34 34 37 40 100 25 25 24 24 24 24 85 Overloaded Moves 201 | . . . . . . 122 . 29 . . . . 50 Propulsion Burnouts . | . . . . . . . . . . . . . . Robots Hopped 196 | . 13 7 5 13 45 51 . 37 1 . . 1 23 Potential Cave-ins . | . . . . . . . . . . . . . . Cave-ins Triggered . | . . . . . . . . . . . . . . Exploration Rate (%) 80 | 3 98 98 91 91 95 69 71 68 98 95 81 96 71 Regions Visited 13 Branch Regions 7 Pre-discovered Areas 32 | . 2 . 1 . . . . . . . 29 . . Known Exits Taken 6 | . . . . . 1 . . 1 1 1 1 1 . Unknown Exits Taken 5 | 1 1 1 1 1 . . . . . . . . . Scrap Searched 14 | . . 1 . 3 . . . . 4 4 . 2 . Spaces Dug 26 | . . . . . . 2 . . . . . . 24 Terrain Destroyed 371 | . . . . . . 13 . 63 33 35 9 41 177 Melee . | . . . . . . . . . . . . . . Projectile 285 | . . . . . . 9 . 38 33 35 9 41 120 AOE 82 | . . . . . . . . 25 . . . . 57 Terrain Rammed . | . . . . . . . . . . . . . . Walls Destroyed . | . . . . . . . . . . . . . . Machines Disabled . | . . . . . . . . . . . . . . Actions | -11 -10 -10 -10 -9 -8 -7 -7 -7 -7 -7 -7 -6 -6 --------- Run | Yrd Mat Min Exi Min Mat Fac Was Fac Low Low Dat Pro Fac Total 24103 | 82 1378 629 740 782 2331 3952 109 5487 1641 1019 211 1167 4575 Wait 2410 | . 190 49 37 81 133 230 4 529 249 139 21 266 482 Move 19297 | 63 1046 537 660 644 1796 3332 104 4247 1320 818 155 824 3751 Hop 181 | . 13 7 4 12 41 46 . 33 1 . . 1 23 Pick Up 49 | . 5 1 1 . 11 6 1 13 3 . 4 . 4 Fast Attach 40 | 7 2 1 . . 16 6 . 5 . . . . 3 Attach 11 | . 1 . . 1 2 2 . 2 . . 3 . . Detach 1 | . . . . . 1 . . . . . . . . Swap 104 | . 3 1 1 . 15 43 . 19 2 6 2 . 12 Drop 77 | . 5 . . . 20 16 . 16 4 1 4 . 11 Fire 1208 | 12 91 24 16 29 183 160 . 409 19 30 21 27 187 Melee 1 | . . . . . . . . . . . 1 . . Ram . | . . . . . . . . . . . . . . Kick . | . . . . . . . . . . . . . . Crush . | . . . . . . . . . . . . . . Escape Stasis 22 | . . . . . . 22 . . . . . . . Rewire 63 | . . . 15 . . . . . 20 . . 28 . Trap . | . . . . . . . . . . . . . . Miscellaneous 639 | . 22 9 6 15 113 89 . 214 23 25 . 21 102 Route ------- -11/Scrapyard -10/Materials (discovered 5 exits: [*Mat x3] / [*Min] / [*Sub]) -10/Mines (discovered 4 exits: [*Mat x2] / *Exi / [*Sub]) -10/Exiles -9/Mines -8/Materials (discovered 3 exits: *Fac x3) -7/Factory (discovered 5 exits: *Fac x3 / *Sto / *Low) -7/Waste -7/Factory (discovered 6 exits: *Fac x3 / *Sto / *Low x2) -7/Lower Caves -7/Lower Caves (discovered 2 exits: *Fac / *Dat) -7/Data Miner -6/Proximity Caves -6/Factory (discovered 4 exits: *Fac x3 / [*Low]) History --------- Turn | Location | Event 1 | -11/Scrapyard | Upgraded with Propulsion slot (x1) 1 | -11/Scrapyard | Upgraded with Utility slot (x1) 1 | -11/Scrapyard | Upgraded with Weapon slot (x1) 8 | -11/Scrapyard | Discovered new exit (range 16) 98 | -11/Scrapyard | Entered Materials 207 | -10/Materials | Discovered new exit (range 16) 289 | -10/Materials | Discovered new exit (range 16) 317 | -10/Materials | Build established: Mutant 446 | -10/Materials | Reached level 2 447 | -10/Materials | Core integrity fell below 50% 551 | -10/Materials | Upgraded with Propulsion slot (x1) 597 | -10/Materials | Discovered new exit (range 15) 723 | -10/Materials | Reached level 3 724 | -10/Materials | Build established: Scavenger-Mutant 732 | -10/Materials | Upgraded with Utility slot (x1) 863 | -10/Materials | Discovered new exit (range 10) 865 | -10/Materials | Discovered new exit (range 16) 1037 | -10/Materials | Reached level 4 1040 | -10/Materials | Upgraded with Weapon slot (x1) 1058 | -10/Materials | Entered Mines 1108 | -10/Mines | Found a damaged Exp. Sensor Array with a note attached 1111 | -10/Mines | Found Prototype Device 1111 | -10/Mines | Identified Exp. Sensor Array 1125 | -10/Mines | Discovered new exit (range 15) 1141 | -10/Mines | Received a Rocket Launcher from a helpful Derelict 1181 | -10/Mines | Discovered new exit (range 9) 1190 | -10/Mines | Learned Materials emergency access door positions 1194 | -10/Mines | Discovered new exit (range 13) 1228 | -10/Mines | Reached level 5 1348 | -10/Mines | Deemed a non-threat by the Exiles lab entrance 1348 | -10/Mines | Discovered new exit (range 5) 1384 | -10/Mines | Entered Exiles 1384 | -10/Exiles | Found Exiles lab destroyed 1384 | -10/Exiles | Accompanied by 1 ally 1398 | -10/Exiles | Build established: Scavenger-Skirmisher 1426 | -10/Exiles | Opened EX-Vault 1427 | -10/Exiles | Found Trap Reconfigurator 1661 | -10/Exiles | Discovered new exit (range 12) 1673 | -10/Exiles | Learned location of Zion (-6) 1724 | -10/Exiles | Entered Mines 1724 | -9/Mines | Accompanied by 3 allies 1728 | -9/Mines | Received a Mining Laser from a helpful Derelict 1745 | -9/Mines | Found DCF Scrap (13 items) 1746 | -9/Mines | Assembled infested the area 1867 | -9/Mines | Reached level 6 1898 | -9/Mines | Upgraded with Utility slot (x1) 1977 | -9/Mines | Discovered new exit (range 10) 1977 | -9/Mines | Learned Materials trap positions 2112 | -9/Mines | Learned Materials security intel 2151 | -9/Mines | Entered Materials 2152 | -8/Materials | Loaded intel: 25 trap records 2153 | -8/Materials | Reached level 7 2159 | -8/Materials | Upgraded with Utility slot (x1) 2181 | -8/Materials | Core integrity fell below 50% 2189 | -8/Materials | Garrison activated, responded to threat 2229 | -8/Materials | Core integrity fell below 20% 2387 | -8/Materials | Reached level 8 2508 | -8/Materials | Garrison activated, responded to threat 2691 | -8/Materials | Reached level 9 2721 | -8/Materials | Upgraded with Utility slot (x1) 2756 | -8/Materials | Discovered new exit (range 16) 2884 | -8/Materials | Reached level 10 2899 | -8/Materials | Build established: Scavenger-Sprinter 3081 | -8/Materials | Discovered new exit (range 3) 3211 | -8/Materials | Reached level 11 3239 | -8/Materials | Upgraded with Utility slot (x1) 3313 | -8/Materials | Discovered new exit (range 7) 3419 | -8/Materials | Sterilization system engaged 3419 | -8/Materials | Non-combat units ordered to evacuate 3519 | -8/Materials | Combat units ordered to evacuate 3600 | -8/Materials | Identified exit to Factory 3629 | -8/Materials | Entered Factory 3630 | -7/Factory | Identified exit to Storage 3631 | -7/Factory | Reached level 12 3736 | -7/Factory | Reached level 13 3773 | -7/Factory | Upgraded with Propulsion slot (x1) 3775 | -7/Factory | Destroyed 7 combat bots 3775 | -7/Factory | Upgraded with Power slot (x1) 3775 | -7/Factory | Upgraded with Propulsion slot (x1) 3884 | -7/Factory | Noticed a derelict Sapper rigging charges 3988 | -7/Factory | Reached level 14 4029 | -7/Factory | First assault squad dispatched 4099 | -7/Factory | Discovered new exit (range 9) 4104 | -7/Factory | Identified exit to Factory 4113 | -7/Factory | Discovered new exit (range 14) 4120 | -7/Factory | Identified exit to Lower Caves 4203 | -7/Factory | Discovered exit to Factory (range 15) 4314 | -7/Factory | Reached level 15 4324 | -7/Factory | Upgraded with Utility slot (x1) 4426 | -7/Factory | Discovered exit to Factory (range 15) 4498 | -7/Factory | Build established: Sprinter 4699 | -7/Factory | Cargo convoy interrupted 4764 | -7/Factory | Destroyed 9 combat bots 4857 | -7/Factory | Reached level 16 4866 | -7/Factory | Found Prototype Launcher 4866 | -7/Factory | Identified Tesla Bomb Launcher 5011 | -7/Factory | Fabricated Enh. Autogun (x1) 5168 | -7/Factory | Fabricated Enh. Autogun (x1) 5260 | -7/Factory | High security lockdown imminent 5297 | -7/Factory | Destroyed 8 combat bots 5302 | -7/Factory | Manually triggered Chute Trap 5302 | -7/Factory | Sucked down chute 5302 | -7/Factory | Entered Waste 5303 | -7/Waste | Met a frightened Derelict 5314 | -7/Waste | Spotted C-40 Crusher 5317 | -7/Waste | EMP discharged 5318 | -7/Waste | Spotted C-40 Crusher 5320 | -7/Waste | Discovered new exit (range 16) 5320 | -7/Waste | Spotted C-40 Crusher 5329 | -7/Waste | Identified exit to Factory 5334 | -7/Waste | Entered Factory 5541 | -7/Factory | System corruption reached 10% 5660 | -7/Factory | Fabricated Enh. Autogun? 5686 | -7/Factory | Discovered exit to Lower Caves (range 14) 5758 | -7/Factory | Reached level 17 5826 | -7/Factory | Upgraded with Weapon slot (x1) 5844 | -7/Factory | Fabricated G-47 Trooper? 5903 | -7/Factory | Fabricated Enh. Autogun? 5958 | -7/Factory | Discovered exit to Factory (range 14) 6037 | -7/Factory | Fabricated Y-54 Guardian? 6081 | -7/Factory | Discovered exit to Lower Caves (range 10) 6182 | -7/Factory | Fabricated Enh. Autogun? 6259 | -7/Factory | Discovered exit to Factory (range 9) 6375 | -7/Factory | Garrison activated, responded to threat 6452 | -7/Factory | Destroyed 12 combat bots 6534 | -7/Factory | First assault squad dispatched 6549 | -7/Factory | Discovered exit to Factory (range 16) 6678 | -7/Factory | Cargo convoy interrupted 6701 | -7/Factory | Reached level 18 6715 | -7/Factory | Core integrity fell below 50% 6844 | -7/Factory | Found Prototype Processor 6844 | -7/Factory | Identified Exp. Targeting Computer 6885 | -7/Factory | Build established: Scavenger-Sprinter 6975 | -7/Factory | Destroyed 11 combat bots 7027 | -7/Factory | High security lockdown imminent 7107 | -7/Factory | High security lockdown engaged 7111 | -7/Factory | Destroyed 16 combat bots 7162 | -7/Factory | Destroyed 7 combat bots 7323 | -7/Factory | Destroyed 14 combat bots 7434 | -7/Factory | Upgraded with Power slot (x1) 7448 | -7/Factory | Sterilization system engaged 7448 | -7/Factory | Non-combat units ordered to evacuate 7474 | -7/Factory | Reached level 19 7477 | -7/Factory | Upgraded with Weapon slot (x1) 7548 | -7/Factory | Combat units ordered to evacuate 7573 | -7/Factory | Destroyed 20 combat bots 7732 | -7/Factory | Destroyed 12 combat bots 7748 | -7/Factory | Ambient heat levels rising (+10) 7776 | -7/Factory | Entered Lower Caves 7811 | -7/Lower Caves | Learned Factory garrison access intel 7824 | -7/Lower Caves | Spotted B-75 Beast 7829 | -7/Lower Caves | Destroyed B-75 Beast 7858 | -7/Lower Caves | Attracted the attention of an 0b10 outpost 7906 | -7/Lower Caves | Learned Factory emergency access door positions 8169 | -7/Lower Caves | Attracted the attention of an 0b10 checkpoint 8181 | -7/Lower Caves | Discovered new exit (range 16) 8201 | -7/Lower Caves | Identified exit to Lower Caves 8428 | -7/Lower Caves | Entered another Lower Caves area 8428 | -7/Lower Caves | Accompanied by 1 ally 8438 | -7/Lower Caves | Discovered exit to Factory (range 8) 8459 | -7/Lower Caves | Encountered a Warlord checkpoint 8512 | -7/Lower Caves | Spotted B-75 Beast 8531 | -7/Lower Caves | Destroyed B-75 Beast 8544 | -7/Lower Caves | Identified exit to Data Miner 8671 | -7/Lower Caves | Attracted the attention of an 0b10 checkpoint 8726 | -7/Lower Caves | Learned 6 Upper Caves zone layouts 8861 | -7/Lower Caves | Entered Data Miner 8861 | -7/Data Miner | Discovered new exit (range 6) 8866 | -7/Data Miner | Met Data Miner 8872 | -7/Data Miner | Learned location of Section 7 (-2) 8872 | -7/Data Miner | Acquired the access code to Warlord's prototype stash 8879 | -7/Data Miner | Received God Mode back door access code from Data Miner 8884 | -7/Data Miner | Interfaced with the Data Conduit 8970 | -7/Data Miner | Identified exit to Proximity Caves 8970 | -7/Data Miner | Entered Proximity Caves 8998 | -6/Proximity Caves | Reached level 20 9036 | -6/Proximity Caves | Spotter reported a threat 9101 | -6/Proximity Caves | Destroyed 14 combat bots 9135 | -6/Proximity Caves | Spotted B-75 Beast 9143 | -6/Proximity Caves | Destroyed B-75 Beast 9174 | -6/Proximity Caves | Learned 8 Factory zone layouts 9254 | -6/Proximity Caves | Discovered exit to Factory (range 16) 9255 | -6/Proximity Caves | Learned Factory trap positions 9409 | -6/Proximity Caves | Received a Behemoth hack from an annoying Tinkerer 9540 | -6/Proximity Caves | Entered Factory 9540 | -6/Factory | Accompanied by 2 allies 9542 | -6/Factory | Loaded intel: 85 trap records 9544 | -6/Factory | Loaded intel: 268 machine locations 9545 | -6/Factory | Loaded intel: 4 garrison access locations 9625 | -6/Factory | Discovered new exit (range 15) 9639 | -6/Factory | Fabricated S-27 Virus? 9756 | -6/Factory | Unchained authorized (6S-H0T) 9775 | -6/Factory | Discovered new exit (range 9) 9777 | -6/Factory | Identified exit to Factory 9985 | -6/Factory | Core integrity fell below 50% 10013 | -6/Factory | Destroyed 6S-H0T 10031 | -6/Factory | Found Prototype Ballistic Gun 10031 | -6/Factory | Identified 6S-H0T's Six Shooter 10050 | -6/Factory | Intercept squad dispatched 10068 | -6/Factory | Spotted Tracker 10075 | -6/Factory | Destroyed Tracker 10076 | -6/Factory | Core integrity fell below 20% 10147 | -6/Factory | Spotted Combat Programmer 10157 | -6/Factory | Destroyed Combat Programmer 10222 | -6/Factory | Reached level 21 10341 | -6/Factory | Discovered exit to Factory (range 13) 10430 | -6/Factory | Discovered exit to Factory (range 12) 10456 | -6/Factory | Upgraded with Propulsion slot (x1) 10530 | -6/Factory | Intercept squad dispatched 10551 | -6/Factory | Spotted Tracker 10553 | -6/Factory | Destroyed Tracker 10558 | -6/Factory | Found Prototype Energy Gun 10558 | -6/Factory | Identified Immobilizer 10571 | -6/Factory | Spotted Combat Programmer 10579 | -6/Factory | Destroyed Combat Programmer 10587 | -6/Factory | Spotted B-75 Beast 10616 | -6/Factory | Destroyed B-75 Beast 10851 | -6/Factory | Cargo convoy interrupted 10932 | -6/Factory | Destroyed 9 combat bots 11049 | -6/Factory | Unchained authorized (DW-4LL) 11052 | -6/Factory | Fabricated Weapon Mount? 11136 | -6/Factory | Intercept squad dispatched 11155 | -6/Factory | Spotted Tracker 11157 | -6/Factory | Destroyed Tracker 11193 | -6/Factory | DW-4LL burst out of a wall 11194 | -6/Factory | Spotted Combat Programmer 11200 | -6/Factory | Destroyed Combat Programmer 11290 | -6/Factory | First assault squad dispatched 11299 | -6/Factory | Garrison activated, responded to threat 11308 | -6/Factory | Destroyed by G-50 Soldier with Heavy Laser Last Messages --------------- 11256_ Power Conduit explodes. 11256_ ALERT: Construction progress impeded, dispatching reinforcements to local area. 11284_ G-50 Soldier destroyed. 11290_ ALERT: Unidentified disturbance in Zone 8A, assault force dispatched. 11291_ DW-4LL enters garrison. 11297_ Slug penetrates Wall. 11299_ Slug penetrates G-50 Soldier. 11299_ G-50 Soldier calls for garrison reinforcements. 11299_ ALERT: Activating Garrison Access F001. 11300_ Y-54 Guardian emerges from the garrison. 11300_ ALERT: Garrison Access compromised, dispatching multiple assault carriers. 11300_ Garrison Access disabled. 11300_ Relay Coupler [Sentry] tumbles out of Garrison Access. 11301_ Slug penetrates Y-54 Guardian. 11302_ Y-54 Guardian destroyed. 11305_ System corrupted: Matter fused (-5). 11307_ Slug penetrates G-50 Soldier. Map ----- +----------------------------------------------------+ | | | | | | | | | | | | | | | | | | | | | ????#############??????????????????????? | | ???Y ????????????????"""""?? | | ???# """ """ """ #???????????????""T""?? | | ???# """ """ """ #?????????????????????? | | ???# """ """ """ #?????????????????????? | | ???# #??????##########+#???? | | ???# ] = / ######## #???? | | ##########+####### #???? | | ! !# ^ #???? | | # #???# | | """ """ + ^""" """ """ #####+###"# | | """ """ # """ """ """ # # | | """ """ # """ """ """ + ! # | | ? ?# #### !!! # | | ? / ! ?# #??# !!! # | | ??# g![! @#### !! # | | ######?#" ^"%=^ =[[ # # | | ???????#" " " =[[ # """""" # | | ??####### """ [[[ # """""" # | | ??# !# *+ """""" # | | ??# # g # """""" # | | ??#! !# ########## # # | | ??# " #????????# # # | | ??# """ # #????????# # "" # | | ??# """ + #????????# # "F"" # | | ??# """ # #?????t??# ^^ # """" !# | | ??# # #????????# ^ ^^^ # # | | ??# """ # #####+#### ###### #### | | ??# """ # #?????##??? | | ??# """ # #?????????? | | "?# # #?????????? | | "?#+##### """"""""" #?????????? | | "?# #???# #?????????? | | "?# #???# """"""""" #?????????? | | ??# #???# ] #?????????? | | ??# #???# #?????????? | | ??# #???# ""! #?????????? | | ??# ##### *" ! ##"""?????? | | ??# =%"F h #"""?????? | | ??# !"" #"""?????? | +----------------------------------------------------+ Best States ------------- Heat Dissipation 111 Energy Generation 51 Energy Capacity 700 Matter Stores 350 Matter Capacity 350 Sight Range 16 Robot Scan Range 42 Terrain Scan Range 16 Terrain Scan Density 110 Additional Mass Support 12 Armor Coverage 450 Weapon Cycling 30 Evasion (%) 66 Core Analysis 6 Kinecelleration 30 Salvage Targeting 2 Offensive Hacking 14 Item Schematics ----------------- Enh. Autogun | -7/Factory | Hacked Combat Drone Bay | -7/Data Miner | Free Lgt. Regenerative Plating | -7/Data Miner | Free Gravity Neutralizer | -7/Data Miner | Free Cld. Aerolev Unit | -7/Data Miner | Free Prc. Rocket Launcher | -7/Data Miner | Free Arm. Medium Treads | -7/Data Miner | Free Lrn. Tractor Beam | -7/Data Miner | Free Lance | -7/Data Miner | Free Neutrino Core | -7/Data Miner | Free Weapon Mount | -6/Factory | Hacked Robot Schematics ------------------ M-28 Smith | -7/Data Miner | Free S-27 Virus | -7/Data Miner | Free G-50 Soldier | -7/Data Miner | Free H-66 Slayer | -7/Data Miner | Free Fabricated ------------ Enh. Autogun | x1 | -7/Factory Enh. Autogun | x1 | -7/Factory Enh. Autogun | x1 | -7/Factory G-47 Trooper | x3 | -7/Factory | Preloaded Enh. Autogun | x1 | -7/Factory Y-54 Guardian | x2 | -7/Factory | Preloaded Enh. Autogun | x1 | -7/Factory S-27 Virus | x4 | -6/Factory | Preloaded Weapon Mount | x2 | -6/Factory Repaired ---------- Nothing Studied --------- None Alien Tech Used ----------------- None Achievements -------------- None Challenges ------------ None RPGLIKE | -11 -10 -10 -10 -9 -8 -7 -7 -7 -7 -7 -7 -6 -6 --------- Run | Yrd Mat Min Exi Min Mat Fac Was Fac Low Low Dat Pro Fac Levels Raised 20 | . 3 1 . 1 5 5 . 3 . . . 1 1 XP Earned 34192 | 3000 4708 1472 139 1347 8256 7394 67 3935 230 237 248 971 2188 XP Spent 33000 | 2960 3650 600 500 2575 7560 7630 . 4525 . . . 800 2200 Upgrades 61 | 10 5 1 5 4 10 13 . 6 . . . 1 6 Power Slot 2 | . . . . . . 1 . 1 . . . . . Propulsion Slot 5 | 1 1 . . . . 2 . . . . . . 1 Utility Slot 7 | 1 1 . . 1 3 1 . . . . . . . Weapon Slot 4 | 1 1 . . . . . . 2 . . . . . Core Integrity 5 | . . . . . . . . 1 . . . . 4 Heat Dissipation 10 | 3 . . . . 1 6 . . . . . . . Energy Generation 2 | . . . . . 1 1 . . . . . . . Matter Storage 1 | . . . . . . . . 1 . . . . . Mass Support 3 | 1 . . . 1 1 . . . . . . . . Inventory Capacity 4 | 2 1 . . . . . . 1 . . . . . Sensor Range 11 | . . . 5 1 4 . . . . . . . 1 Ranged Accuracy 5 | 1 1 1 . 1 . . . . . . . 1 . KI Damage % 2 | . . . . . . 2 . . . . . . . Protomatter Created 7318 | . 206 58 85 112 937 1060 . 2661 303 435 81 530 850 Integrity Restored 13209 | . 435 174 123 312 2483 1830 . 4299 488 550 . 380 2135 Core 10682 | . 435 174 123 312 2049 1402 . 3424 334 443 . 316 1670 Parts 2527 | . . . . . 434 428 . 875 154 107 . 64 465 Protomatter Decayed 2216 | . 29 . 44 48 56 117 . 1008 127 283 . 382 122 Game ------ Seed TachyonIonAutohacker Manual? 0 Play Time 02:33:17 Cumulative 540.1 hours Start 2026.01.08 @ 13:53:13 End 2026.01.09 @ 08:31:56 Sessions 7 Manual Loads 0 Difficulty Rogue Special Mode Winter2019/RPGLIKE Game No. 200 Rogue 46 Adventurer 154 Explorer 0 Win Type - Total 20 Types 4/4/3/3/2/1/0/1/1/1 Lore% 95 Gallery% 88 Achievement% 61 Wizard Run 0 Options --------- Layout 0 ASCII 0 Keyboard 0 Movement Numpad Keybinds 0 Fullscreen 2 Font 18/SmallcapsGlow Map View 76x50 Zoom Use 0% Tactical HUD 1 Map Filters NONE Filters NONE Steam 1 RUN: 507249cc-5438-4d4b-b626-6eb6e8fb8958